[Event "9th Bangabandhu Rapid Women 2021"]
[Site "Dhaka"]
[Date "2021.04.02"]
[Round "3.3"]
[White "Hamid, Rani"]
[Black "Sultana, Zakia"]
[Result "1-0"]
[ECO "A08"]
[WhiteElo "1923"]
[BlackElo "1814"]
[Annotator "NA"]
[PlyCount "96"]
[EventDate "2021.04.02"]
[EventType "swiss"]
[EventCountry "BAN"]
[SourceTitle "playchess.com"]
[Source "ChessBase"]
[SourceQuality "1"]
[TimeControl "1500+10"]

1. e4 {[%emt 0:25:10]} e6 2. d3 {[%emt 0:00:10]} d5 {[%emt 0:25:20]} 3. Qe2 {[%emt 0:00:10]} g6 {[%emt 0:00:10]} 4. Nf3 {[%emt 0:00:10]} Bg7 5. g3 {[%emt 0:00:10]} Ne7 {[%emt 0:00:20]} 6. Bg2 {[%emt 0:00:10]} O-O {[%emt 0:00:10]} 7. O-O {[%emt 0:00:10]} c5 {[%emt 0:00:10]} 8. c3 {[%emt 0:00:10]} Nbc6 {[%emt 0:00:10]} 9. e5 {[%emt 0:00:10]} Qc7 {[%emt 0:00:10]} 10. Re1 {[%emt 0:00:10]} b6 {[%emt 0:00:10]} 11. h4 {[%emt 0:00:10]} Bb7 {[%emt 0:00:10]} 12. Bf4 {[%emt 0:00:10]} Rad8 {[%emt 0:00:10]} 13. Na3 {[%emt 0:00:10]} a6 {[%emt 0:00:10]} 14. Nc2 {[%emt 0:00:10]} b5 {[%emt 0:00:10]} 15. Ne3 {[%emt 0:00:10]} d4 {[%emt 0:00:10]} 16. Ng4 {[%emt 0:00:10]} Nd5 {[%emt 0:00:10]} 17. Bg5 {[%emt 0:00:10]} Rc8 {[%emt 0:00:10]} 18. cxd4 {[%emt 0:00:10]} cxd4 {[%emt 0:00:10]} 19. Rac1 {[%emt 0:00:10]} Qb6 {[%emt 0:00:10]} 20. Nf6+ {[%emt 0:00:10]} Nxf6 {[%emt 0:00:10]} 21. exf6 {[%emt 0:00:10]} Bh8 {[%emt 0:00:10]} 22. h5 {[%emt 0:00:10]} Rfe8 {[%emt 0:00:10]} 23. Nh2 {[%emt 0:00:10]} Nb4 {[%emt 0:00:10]} 24. Ng4 {[%emt 0:00:10]} Bxg2 {[%emt 0:00:10]} 25. Kxg2 {[%emt 0:00:10]} Qb7+ {[%emt 0:00:10]} 26. f3 {[%emt 0:00:10]} Rxc1 {[%emt 0:00:10]} 27. Rxc1 {[%emt 0:00:10]} Rc8 {[%emt 0:00:10]} 28. Nh6+ {[%emt 0:00:10]} Kf8 {[%emt 0:00:10]} 29. hxg6 {[%emt 0:00:10]} hxg6 {[%emt 0:00:10]} 30. Qd2 {[%emt 0:00:10]} Nd5 {[%emt 0:00:10]} 31. Ng4 {[%emt 0:00:10]} Rxc1 {[%emt 0:00:10]} 32. Qxc1 {[%emt 0:00:10]} Qc7 {[%emt 0:00:10]} 33. Bh6+ {[%emt 0:00:10]} Kg8 {[%emt 0:00:10]} 34. Qxc7 {[%emt 0:00:10]} Nxc7 {[%emt 0:00:10]} 35. Bf4 {[%emt 0:00:10]} Nd5 {[%emt 0:00:10]} 36. Be5 {[%emt 0:00:10]} Ne3+ {[%emt 0:00:10]} 37. Nxe3 {[%emt 0:00:10]} dxe3 {[%emt 0:00:10]} 38. f4 {[%emt 0:00:10]} Kf8 {[%emt 0:00:10]} 39. Kf3 {[%emt 0:00:10]} Ke8 40. Kxe3 {[%emt 0:00:10]} Kd7 {[%emt 0:00:20]} 41. Kd4 {[%emt 0:00:10]} Kc6 {[%emt 0:00:10]} 42. b3 {[%emt 0:00:10]} a5 {[%emt 0:00:10]} 43. g4 {[%emt 0:00:10]} Kb6 {[%emt 0:00:10]} 44. a3 {[%emt 0:00:10]} Kc6 45. Ke4 {[%emt 0:00:10]} Kc5 {[%emt 0:00:20]} 46. d4+ {[%emt 0:00:10]} Kc6 {[%emt 0:00:10]} 47. a4 {[%emt 0:00:10]} b4 {[%emt 0:00:10]} 48. d5+ {[%emt 0:00:10]} exd5+ {[%emt 0:00:10]} 1-0

[Event "9th Bangabandhu Rapid Women 2021"]
[Site "Dhaka"]
[Date "2021.04.02"]
[Round "3.4"]
[White "Sultana, Sharmin Shirin"]
[Black "Sabikun Nahar, Tonima"]
[Result "1-0"]
[ECO "A48"]
[WhiteElo "2002"]
[BlackElo "1533"]
[Annotator "ChessBase"]
[PlyCount "86"]
[EventDate "2021.04.02"]
[EventType "swiss"]
[EventCountry "BAN"]
[SourceTitle "playchess.com"]
[Source "ChessBase"]
[SourceQuality "1"]
[TimeControl "1500+10"]

1. Nf3 {[%emt 0:25:10]} Nf6 {[%emt 0:25:10]} 2. b3 {[%emt 0:00:10]} g6 {[%emt 0:00:10]} 3. Bb2 {[%emt 0:00:10]} Bg7 4. e3 {[%emt 0:00:10]} c5 {[%emt 0:00:20]} 5. d4 {[%emt 0:00:10]} O-O {[%emt 0:00:10]} 6. Bd3 {[%emt 0:00:10]} Nc6 {[%emt 0:00:10]} 7. O-O {[%emt 0:00:10]} b6 {[%emt 0:00:10]} 8. Nbd2 {[%emt 0:00:10]} Nb4 {[%emt 0:00:10]} 9. Be2 {[%emt 0:00:10]} d6 {[%emt 0:00:10]} 10. a3 {[%emt 0:00:10]} Na6 {[%emt 0:00:10]} 11. Bd3 {[%emt 0:00:10]} Nc7 {[%emt 0:00:10]} 12. Qe2 {[%emt 0:00:10]} Re8 {[%emt 0:00:10]} 13. a4 {[%emt 0:00:10]} Nfd5 {[%emt 0:00:10]} 14. c4 {[%emt 0:00:10]} Nb4 {[%emt 0:00:10]} 15. Bb1 {[%emt 0:00:10]} d5 {[%emt 0:00:10]} 16. Rd1 {[%emt 0:00:10]} Ba6 {[%emt 0:00:10]} 17. Nf1 {[%emt 0:00:10]} e6 {[%emt 0:00:10]} 18. dxc5 {[%emt 0:00:10]} bxc5 {[%emt 0:00:10]} 19. Ng3 {[%emt 0:00:10]} e5 {[%emt 0:00:10]} 20. Qe1 {[%emt 0:00:10]} d4 {[%emt 0:00:10]} 21. exd4 {[%emt 0:00:10]} exd4 {[%emt 0:00:10]} 22. Qd2 {[%emt 0:00:10]} Bb7 {[%emt 0:00:10]} 23. Ne1 {[%emt 0:00:10]} Qd7 {[%emt 0:00:10]} 24. Nd3 {[%emt 0:00:10]} Qc6 {[%emt 0:00:10]} 25. f3 {[%emt 0:00:10]} a5 {[%emt 0:00:10]} 26. Nxb4 {[%emt 0:00:10]} axb4 {[%emt 0:00:10]} 27. Bd3 {[%emt 0:00:10]} f5 {[%emt 0:00:10]} 28. Re1 {[%emt 0:00:10]} Qd6 {[%emt 0:00:10]} 29. Rxe8+ {[%emt 0:00:10]} Rxe8 {[%emt 0:00:10]} 30. Re1 {[%emt 0:00:10]} Be5 {[%emt 0:00:10]} 31. Nf1 {[%emt 0:00:10]} Kg7 {[%emt 0:00:10]} 32. Bc1 {[%emt 0:00:10]} f4 {[%emt 0:00:10]} 33. Qc2 {[%emt 0:00:10]} Re7 {[%emt 0:00:10]} 34. Nd2 {[%emt 0:00:10]} Ne8 {[%emt 0:00:10]} 35. Ne4 {[%emt 0:00:10]} Qc7 {[%emt 0:00:10]} 36. Qf2 {[%emt 0:00:10]} Nd6 {[%emt 0:00:10]} 37. Ng5 {[%emt 0:00:10]} h6 {[%emt 0:00:10]} 38. Nh3 {[%emt 0:00:10]} g5 {[%emt 0:00:10]} 39. Qc2 {[%emt 0:00:10]} Bc6 {[%emt 0:00:10]} 40. Bd2 {[%emt 0:00:10]} Bd7 {[%emt 0:00:10]} 41. Nf2 Qc8 {[%emt 0:00:10]} 42. Ne4 {[%emt 0:00:20]} Nf5 {[%emt 0:00:10]} 43. Kh1 {[%emt 0:00:10]} Qc7 {[%emt 0:00:10]} 1-0

[Event "9th Bangabandhu Rapid Women 2021"]
[Site "Dhaka"]
[Date "2021.04.02"]
[Round "4.1"]
[White "Noshin, Anjum"]
[Black "Hamid, Rani"]
[Result "0-1"]
[ECO "B43"]
[WhiteElo "1912"]
[BlackElo "1920"]
[Annotator "NA"]
[PlyCount "70"]
[EventDate "2021.04.02"]
[EventType "swiss"]
[EventCountry "BAN"]
[SourceTitle "playchess.com"]
[Source "ChessBase"]
[SourceQuality "1"]
[TimeControl "1500+10"]

1. e4 {[%emt 0:00:00]} c5 {[%emt 0:00:00]} 2. Nf3 {[%emt 0:00:00]} e6 {[%emt 0:00:00]} 3. d4 {[%emt 0:00:00]} cxd4 {[%emt 0:00:00]} 4. Nxd4 {[%emt 0:00:00]} a6 {[%emt 0:00:00]} 5. Nc3 {[%emt 0:00:04]} Qc7 {[%emt 0:00:00]} 6. Bd3 {[%emt 0:00:03]} Nf6 {[%emt 0:00:07]} 7. f4 {[%emt 0:00:23]} Bb4 {[%emt 0:00:30]} 8. Bd2 {[%emt 0:00:07]} d5 {[%emt 0:00:27]} 9. exd5 {[%emt 0:02:03]} Bxc3 {[%emt 0:00:05]} 10. bxc3 {[%emt 0:02:23]} Nxd5 {[%emt 0:00:07]} 11. O-O {[%emt 0:03:38]} O-O {[%emt 0:03:12]} 12. Qf3 {[%emt 0:03:01]} Bd7 {[%emt 0:00:16]} 13. Kh1 {[%emt 0:00:54]} Nc6 {[%emt 0:00:17]} 14. f5 {[%emt 0:01:46]} Ne5 {[%emt 0:01:40]} 15. Qg3 {[%emt 0:00:50]} Nxd3 {[%emt 0:01:16]} 16. Qxc7 {[%emt 0:00:50]} Nxc7 {[%emt 0:00:02]} 17. cxd3 {[%emt 0:00:56]} e5 {[%emt 0:01:22]} 18. Nb3 {[%emt 0:01:16]} f6 {[%emt 0:01:48]} 19. Nc5 {[%emt 0:01:07]} Bc6 {[%emt 0:00:11]} 20. Rab1 {[%emt 0:00:02]} b5 {[%emt 0:01:30]} 21. Rb4 {[%emt 0:01:10]} Rfd8 {[%emt 0:00:16]} 22. Rg4 {[%emt 0:00:28]} Kh8 {[%emt 0:01:38]} 23. Bc1 {[%emt 0:01:42]} Bd5 {[%emt 0:01:17]} 24. a4 {[%emt 0:00:12]} Bf7 {[%emt 0:01:12]} 25. Re1 {[%emt 0:02:01]} Nd5 {[%emt 0:01:18]} 26. Bd2 {[%emt 0:02:05]} Ne7 {[%emt 0:00:42]} 27. axb5 {[%emt 0:00:25]} axb5 {[%emt 0:00:08]} 28. Rb4 {[%emt 0:00:17]} Ra2 {[%emt 0:00:53]} 29. Ne4 {[%emt 0:01:14]} Bd5 {[%emt 0:01:16]} 30. Bc1 {[%emt 0:00:36]} Bc6 {[%emt 0:00:32]} 31. Rb2 {[%emt 0:00:23]} Rxb2 {[%emt 0:00:27]} 32. Bxb2 {[%emt 0:00:01]} Rxd3 {[%emt 0:00:12]} 33. h3 {[%emt 0:00:18]} Nxf5 {[%emt 0:00:27]} 34. Ba3 {[%emt 0:00:13]} Bxe4 {[%emt 0:00:13]} 35. Rxe4 {[%emt 0:00:01]} Ng3+ {[%emt 0:00:01]} 0-1

[Event "9th Bangabandhu Rapid Women 2021"]
[Site "Dhaka"]
[Date "2021.04.02"]
[Round "4.2"]
[White "Ahmed, Walijah"]
[Black "Sultana, Sharmin Shirin"]
[Result "0-1"]
[ECO "B42"]
[WhiteElo "1902"]
[BlackElo "2006"]
[Annotator "NA"]
[PlyCount "140"]
[EventDate "2021.04.02"]
[EventType "swiss"]
[EventCountry "BAN"]
[SourceTitle "playchess.com"]
[Source "ChessBase"]
[SourceQuality "1"]
[TimeControl "1500+10"]

1. e4 {[%emt 0:00:00]} c5 {[%emt 0:00:00]} 2. Nf3 {[%emt 0:00:00]} e6 {[%emt 0:00:00]} 3. d4 {[%emt 0:00:00]} cxd4 {[%emt 0:00:00]} 4. Nxd4 {[%emt 0:00:00]} a6 {[%emt 0:00:00]} 5. Bd3 {[%emt 0:00:01]} Qc7 {[%emt 0:00:08]} 6. O-O {[%emt 0:00:21]} Nc6 {[%emt 0:00:48]} 7. Be3 {[%emt 0:00:36]} Nf6 {[%emt 0:00:17]} 8. c4 {[%emt 0:01:01]} b6 {[%emt 0:01:19]} 9. Qe2 {[%emt 0:00:24]} Bb7 {[%emt 0:01:30]} 10. Nc3 {[%emt 0:01:22]} Ne5 {[%emt 0:02:07]} 11. f3 {[%emt 0:00:24]} Rc8 {[%emt 0:00:25]} 12. b3 {[%emt 0:01:25]} d6 {[%emt 0:01:53]} 13. Rac1 {[%emt 0:00:21]} Be7 {[%emt 0:00:10]} 14. Rfd1 {[%emt 0:00:12]} O-O {[%emt 0:00:03]} 15. Qf2 {[%emt 0:01:34]} Nfd7 {[%emt 0:02:45]} 16. Bf1 {[%emt 0:00:22]} Bf6 {[%emt 0:00:40]} 17. h3 {[%emt 0:03:34]} Nc6 {[%emt 0:02:37]} 18. Nxc6 {[%emt 0:01:46]} Qxc6 {[%emt 0:01:14]} 19. Nd5 {[%emt 0:01:25]} Bd8 {[%emt 0:02:56]} 20. Qg3 {[%emt 0:01:10]} Ne5 {[%emt 0:00:57]} 21. Nb4 {[%emt 0:01:57]} Qc7 {[%emt 0:00:14]} 22. f4 {[%emt 0:00:38]} Ng6 {[%emt 0:01:54]} 23. f5 {[%emt 0:00:49]} Ne5 {[%emt 0:01:02]} 24. Nd3 {[%emt 0:03:51]} exf5 {[%emt 0:01:37]} 25. exf5 {[%emt 0:00:15]} Kh8 {[%emt 0:04:34]} 26. Nf4 {[%emt 0:00:41]} Be4 {[%emt 0:00:00]} 27. Nd5 {[%emt 0:01:33]} Bxd5 {[%emt 0:00:00]} 28. Rxd5 {[%emt 0:01:26]} f6 {[%emt 0:00:00]} 29. Rcd1 {[%emt 0:00:25]} Be7 {[%emt 0:00:00]} 30. Qf2 {[%emt 0:00:08]} Rb8 {[%emt 0:00:00]} 31. g4 {[%emt 0:00:36]} Rfe8 {[%emt 0:00:00]} 32. Bg2 {[%emt 0:00:02]} b5 {[%emt 0:00:00]} 33. cxb5 {[%emt 0:00:10]} axb5 {[%emt 0:00:05]} 34. Rc1 {[%emt 0:00:45]} Qa5 {[%emt 0:00:10]} 35. Qc2 {[%emt 0:00:33]} Qb4 {[%emt 0:00:24]} 36. Rd4 {[%emt 0:00:15]} Qa5 {[%emt 0:00:10]} 37. Bd5 {[%emt 0:00:16]} Qa6 {[%emt 0:00:21]} 38. Kf2 {[%emt 0:00:05]} Rbc8 {[%emt 0:00:03]} 39. Qe2 {[%emt 0:00:24]} Rxc1 {[%emt 0:00:09]} 40. Bxc1 {[%emt 0:00:01]} Rc8 {[%emt 0:00:01]} 41. Bf4 {[%emt 0:00:13]} Qa7 {[%emt 0:00:29]} 42. Be3 {[%emt 0:00:12]} Bd8 {[%emt 0:00:05]} 43. Rc4 {[%emt 0:00:07]} Qb8 {[%emt 0:00:06]} 44. Rc2 {[%emt 0:00:09]} b4 {[%emt 0:00:17]} 45. Be6 {[%emt 0:00:09]} Rc7 {[%emt 0:00:07]} 46. Qd2 {[%emt 0:00:20]} Be7 {[%emt 0:00:03]} 47. Bf4 {[%emt 0:00:15]} Qb6+ {[%emt 0:00:24]} 48. Be3 {[%emt 0:00:01]} Qb7 {[%emt 0:00:04]} 49. Rxc7 {[%emt 0:00:24]} Qxc7 {[%emt 0:00:01]} 50. Bd5 {[%emt 0:00:17]} Qa5 {[%emt 0:00:18]} 51. Be4 {[%emt 0:00:14]} Qa6 {[%emt 0:00:37]} 52. Qc2 {[%emt 0:00:09]} h6 {[%emt 0:00:11]} 53. Bd4 {[%emt 0:00:14]} Kh7 {[%emt 0:00:14]} 54. Qe2 {[%emt 0:00:13]} Qa5 {[%emt 0:00:09]} 55. Be3 {[%emt 0:00:02]} Qc7 {[%emt 0:00:04]} 56. Qc2 {[%emt 0:00:02]} Qb8 {[%emt 0:00:06]} 57. Bd5 {[%emt 0:00:07]} Bd8 {[%emt 0:00:12]} 58. Qd2 {[%emt 0:00:10]} Bb6 {[%emt 0:00:03]} 59. Kg3 {[%emt 0:00:15]} Qa7 {[%emt 0:00:11]} 60. Bxb6 {[%emt 0:00:08]} Qxb6 {[%emt 0:00:01]} 61. Qf2 {[%emt 0:00:01]} Qb5 {[%emt 0:00:06]} 62. Be4 {[%emt 0:00:16]} d5 {[%emt 0:00:06]} 63. Bf3 {[%emt 0:00:14]} Qd3 {[%emt 0:00:11]} 64. Kg2 {[%emt 0:00:04]} d4 {[%emt 0:00:04]} 65. Be2 {[%emt 0:00:21]} Qe4+ {[%emt 0:00:09]} 66. Bf3 {[%emt 0:00:05]} Nxf3 {[%emt 0:00:22]} 67. Qxf3 {[%emt 0:00:04]} Qc2+ {[%emt 0:00:01]} 68. Qf2 {[%emt 0:00:01]} d3 {[%emt 0:00:02]} 69. g5 {[%emt 0:00:19]} hxg5 {[%emt 0:00:10]} 70. Kg3 {[%emt 0:00:06]} d2 {[%emt 0:00:11]} 0-1

[Event "9th Bangabandhu Rapid Women 2021"]
[Site "Dhaka"]
[Date "2021.04.02"]
[Round "4.3"]
[White "Nusrat Jahan, Alo"]
[Black "Talukder, Umme Taslima Protiva"]
[Result "1/2-1/2"]
[ECO "B66"]
[WhiteElo "1712"]
[BlackElo "1722"]
[Annotator "NA"]
[PlyCount "156"]
[EventDate "2021.04.02"]
[EventType "swiss"]
[EventCountry "BAN"]
[SourceTitle "playchess.com"]
[Source "ChessBase"]
[SourceQuality "1"]
[TimeControl "1500+10"]

1. e4 {[%emt 0:25:10]} c5 {[%emt 0:25:10]} 2. Nf3 {[%emt 0:00:10]} d6 {[%emt 0:00:10]} 3. d4 {[%emt 0:00:10]} cxd4 {[%emt 0:00:10]} 4. Nxd4 {[%emt 0:00:10]} Nf6 {[%emt 0:00:10]} 5. Nc3 {[%emt 0:00:10]} a6 {[%emt 0:00:10]} 6. Bg5 {[%emt 0:00:10]} e6 {[%emt 0:00:10]} 7. Qd2 {[%emt 0:00:10]} Be7 {[%emt 0:00:10]} 8. f4 {[%emt 0:00:10]} Nc6 {[%emt 0:00:10]} 9. O-O-O {[%emt 0:00:10]} Qc7 {[%emt 0:00:10]} 10. Bxf6 {[%emt 0:00:10]} gxf6 {[%emt 0:00:10]} 11. g3 {[%emt 0:00:10]} Bd7 {[%emt 0:00:10]} 12. a3 {[%emt 0:00:10]} Rc8 {[%emt 0:00:10]} 13. Bg2 {[%emt 0:00:10]} Na5 {[%emt 0:00:10]} 14. Nb3 {[%emt 0:00:10]} Nc4 {[%emt 0:00:10]} 15. Qd3 {[%emt 0:00:10]} Nxa3 {[%emt 0:00:10]} 16. Rd2 {[%emt 0:00:10]} Nc4 {[%emt 0:00:10]} 17. Re2 {[%emt 0:00:10]} b5 {[%emt 0:00:10]} 18. Nd2 {[%emt 0:00:10]} b4 {[%emt 0:00:10]} 19. Nxc4 {[%emt 0:00:10]} Qxc4 {[%emt 0:00:10]} 20. Qxc4 {[%emt 0:00:10]} Rxc4 {[%emt 0:00:10]} 21. Nb1 {[%emt 0:00:10]} O-O {[%emt 0:00:10]} 22. Nd2 {[%emt 0:00:10]} Rc7 {[%emt 0:00:10]} 23. Nb3 {[%emt 0:00:10]} Bb5 {[%emt 0:00:10]} 24. Rd2 {[%emt 0:00:10]} Rfc8 {[%emt 0:00:10]} 25. Nd4 {[%emt 0:00:10]} Bd7 {[%emt 0:00:10]} 26. Kb1 {[%emt 0:00:10]} a5 {[%emt 0:00:10]} 27. Rhd1 {[%emt 0:00:10]} a4 {[%emt 0:00:10]} 28. Bf1 {[%emt 0:00:10]} Rb8 {[%emt 0:00:10]} 29. Ka2 {[%emt 0:00:10]} Bf8 {[%emt 0:00:10]} 30. Be2 {[%emt 0:00:10]} Bh6 {[%emt 0:00:10]} 31. Nf3 {[%emt 0:00:10]} b3+ {[%emt 0:00:10]} 32. cxb3 {[%emt 0:00:10]} axb3+ {[%emt 0:00:10]} 33. Kb1 {[%emt 0:00:10]} Ra7 {[%emt 0:00:10]} 34. Rxd6 {[%emt 0:00:10]} Rba8 {[%emt 0:00:10]} 35. Kc1 {[%emt 0:00:10]} Rc7+ {[%emt 0:00:10]} 36. Kd2 {[%emt 0:00:10]} Bc6 {[%emt 0:00:10]} 37. Bd3 {[%emt 0:00:10]} Bf8 {[%emt 0:00:10]} 38. Rd4 {[%emt 0:00:10]} Bc5 {[%emt 0:00:10]} 39. Rc4 {[%emt 0:00:10]} Bb5 {[%emt 0:00:10]} 40. Rcc1 {[%emt 0:00:10]} Rd8 {[%emt 0:00:10]} 41. Ke2 {[%emt 0:00:10]} Bxd3+ {[%emt 0:00:10]} 42. Rxd3 {[%emt 0:00:10]} Rxd3 {[%emt 0:00:10]} 43. Kxd3 {[%emt 0:00:10]} Bb6 {[%emt 0:00:10]} 44. Rxc7 {[%emt 0:00:10]} Bxc7 {[%emt 0:00:10]} 45. Kc3 {[%emt 0:00:10]} Kf8 {[%emt 0:00:10]} 46. Kxb3 {[%emt 0:00:10]} Ke7 47. Kc4 {[%emt 0:00:10]} Kd6 {[%emt 0:00:20]} 48. b4 {[%emt 0:00:10]} Kc6 {[%emt 0:00:10]} 49. b5+ {[%emt 0:00:10]} Kb6 {[%emt 0:00:10]} 50. e5 {[%emt 0:00:10]} fxe5 {[%emt 0:00:10]} 51. Nxe5 {[%emt 0:00:10]} f5 {[%emt 0:00:10]} 52. Nd7+ {[%emt 0:00:10]} Kb7 {[%emt 0:00:10]} 53. Nf8 {[%emt 0:00:10]} e5 {[%emt 0:00:10]} 54. fxe5 {[%emt 0:00:10]} Bxe5 {[%emt 0:00:10]} 55. Nxh7 {[%emt 0:00:10]} f4 {[%emt 0:00:10]} 56. gxf4 {[%emt 0:00:10]} Bxf4 {[%emt 0:00:10]} 57. h4 {[%emt 0:00:10]} Kc7 {[%emt 0:00:10]} 58. Kb4 {[%emt 0:00:10]} Kd6 {[%emt 0:00:10]} 59. Ka5 {[%emt 0:00:10]} Ke6 {[%emt 0:00:10]} 60. Ng5+ {[%emt 0:00:10]} Kf5 {[%emt 0:00:10]} 61. Nh3 {[%emt 0:00:10]} Bc7+ {[%emt 0:00:10]} 62. Ka6 {[%emt 0:00:10]} Kg4 {[%emt 0:00:10]} 63. Kb7 {[%emt 0:00:10]} Be5 {[%emt 0:00:10]} 64. Nf2+ {[%emt 0:00:10]} Kxh4 {[%emt 0:00:10]} 65. Nd3 {[%emt 0:00:10]} Bg3 {[%emt 0:00:10]} 66. Nc5 {[%emt 0:00:10]} Kg4 {[%emt 0:00:10]} 67. Ne4 {[%emt 0:00:10]} Be5 {[%emt 0:00:10]} 68. Kc6 {[%emt 0:00:10]} Kf5 {[%emt 0:00:10]} 69. Nd6+ {[%emt 0:00:10]} Ke6 {[%emt 0:00:10]} 70. Nc4 {[%emt 0:00:10]} Bd4 {[%emt 0:00:10]} 71. Na5 {[%emt 0:00:10]} Be3 {[%emt 0:00:10]} 72. Nb7 {[%emt 0:00:10]} Ba7 {[%emt 0:00:10]} 73. Nd6 {[%emt 0:00:10]} Bb8 {[%emt 0:00:10]} 74. Nc8 {[%emt 0:00:10]} Be5 {[%emt 0:00:10]} 75. b6 {[%emt 0:00:10]} Bf4 {[%emt 0:00:10]} 76. Na7 {[%emt 0:00:10]} Be3 {[%emt 0:00:10]} 77. Kc7 {[%emt 0:00:10]} Bxb6+ {[%emt 0:00:10]} 78. Kxb6 {[%emt 0:00:10]} Ke5 {[%emt 0:00:10]} 1/2-1/2

[Event "9th Bangabandhu Rapid Women 2021"]
[Site "Dhaka"]
[Date "2021.04.02"]
[Round "4.4"]
[White "Jannatul, Ferdous"]
[Black "Kazi Zarin, Tasnim"]
[Result "1/2-1/2"]
[ECO "D02"]
[WhiteElo "1778"]
[BlackElo "1790"]
[Annotator "NA"]
[PlyCount "69"]
[EventDate "2021.04.02"]
[EventType "swiss"]
[EventCountry "BAN"]
[SourceTitle "playchess.com"]
[Source "ChessBase"]
[SourceQuality "1"]
[TimeControl "1500+10"]

1. d4 {[%emt 0:25:10]} d5 {[%emt 0:25:10]} 2. Bf4 {[%emt 0:00:10]} Nf6 {[%emt 0:00:10]} 3. Nf3 {[%emt 0:00:10]} c5 {[%emt 0:00:10]} 4. e3 {[%emt 0:00:10]} Nc6 {[%emt 0:00:10]} 5. c3 {[%emt 0:00:10]} Bf5 {[%emt 0:00:10]} 6. Bd3 {[%emt 0:00:10]} Bxd3 {[%emt 0:00:10]} 7. Qxd3 {[%emt 0:00:10]} Qb6 {[%emt 0:00:10]} 8. Qe2 {[%emt 0:00:10]} e6 {[%emt 0:00:10]} 9. O-O {[%emt 0:00:10]} Be7 {[%emt 0:00:10]} 10. h3 {[%emt 0:00:10]} O-O {[%emt 0:00:10]} 11. Ne5 {[%emt 0:00:10]} Rad8 {[%emt 0:00:10]} 12. Qc2 {[%emt 0:00:10]} Nd7 {[%emt 0:00:10]} 13. Bh2 {[%emt 0:00:10]} Ncxe5 {[%emt 0:00:10]} 14. dxe5 {[%emt 0:00:10]} Qc7 {[%emt 0:00:10]} 15. f4 {[%emt 0:00:10]} Qb6 {[%emt 0:00:10]} 16. Kh1 {[%emt 0:00:10]} Nb8 {[%emt 0:00:10]} 17. Nd2 {[%emt 0:00:10]} Nc6 {[%emt 0:00:10]} 18. Nf3 {[%emt 0:00:10]} Rc8 {[%emt 0:00:10]} 19. Qf2 {[%emt 0:00:10]} Rfd8 {[%emt 0:00:10]} 20. Rfd1 {[%emt 0:00:10]} Rd7 {[%emt 0:00:10]} 21. Rd2 {[%emt 0:00:10]} Rcd8 {[%emt 0:00:10]} 22. Rad1 {[%emt 0:00:10]} Qa5 {[%emt 0:00:10]} 23. a3 {[%emt 0:00:10]} Qb6 {[%emt 0:00:10]} 24. Bg1 {[%emt 0:00:10]} Na5 {[%emt 0:00:10]} 25. b4 {[%emt 0:00:10]} Nc4 {[%emt 0:00:10]} 26. Ra2 {[%emt 0:00:10]} a5 {[%emt 0:00:10]} 27. Rb1 {[%emt 0:00:10]} cxb4 {[%emt 0:00:10]} 28. cxb4 {[%emt 0:00:10]} axb4 {[%emt 0:00:10]} 29. axb4 {[%emt 0:00:10]} Qb5 {[%emt 0:00:10]} 30. Nd4 {[%emt 0:00:10]} Qb6 {[%emt 0:00:10]} 31. Qe2 {[%emt 0:00:10]} Qc7 {[%emt 0:00:10]} 32. Nb5 {[%emt 0:00:10]} Qb6 {[%emt 0:00:10]} 33. Nd4 {[%emt 0:00:10]} Qc7 {[%emt 0:00:10]} 34. Nb5 {[%emt 0:00:10]} Qb6 {[%emt 0:00:10]} 35. Nd4 {[%emt 0:00:10]} 1/2-1/2